[Event "POL-ch Women MOKATE 2020"]
[Site "Ostrow Wielkopolski"]
[Date "2020.08.05"]
[Round "2.5"]
[White "Kulon, Klaudia"]
[Black "Antolak, Julia"]
[Result "1-0"]
[ECO "A45"]
[WhiteElo "2336"]
[BlackElo "2323"]
[Annotator "RC"]
[PlyCount "117"]
[EventDate "2020.08.04"]
[EventType "tourn"]
[EventCountry "POL"]
[SourceTitle "playchess.com"]
[Source "ChessBase"]
[SourceQuality "1"]
[TimeControl "40/5400+30:1800+30"]

1. d4 {[%emt 0:00:00]} Nf6 {[%emt 0:00:00]} 2. Bg5 {[%emt 0:00:00]} d5 {[%emt 0:00:02]} 3. Bxf6 {[%emt 0:00:00]} gxf6 {[%emt 0:00:27]} 4. e3 {[%emt 0:00:05]} c5 {[%emt 0:02:11]} 5. dxc5 {[%emt 0:00:28]} e6 {[%emt 0:03:47]} 6. Nf3 {[%emt 0:00:35]} Bxc5 {[%emt 0:04:17]} 7. Be2 {[%emt 0:01:15]} Nc6 {[%emt 0:02:03]} 8. O-O {[%emt 0:00:52]} O-O {[%emt 0:05:09]} 9. c4 {[%emt 0:02:15]} d4 {[%emt 0:10:53]} 10. b4 {[%emt 0:05:25]} d3 {[%emt 0:09:16]} 11. bxc5 {[%emt 0:00:25]} dxe2 {[%emt 0:00:05]} 12. Qxe2 {[%emt 0:00:03]} Qe7 {[%emt 0:05:42]} 13. Nc3 {[%emt 0:15:35]} Qxc5 {[%emt 0:03:00]} 14. Rab1 {[%emt 0:00:09]} Qf5 {[%emt 0:08:22]} 15. Rb5 {[%emt 0:16:08]} Qg6 {[%emt 0:01:20]} 16. Nh4 {[%emt 0:02:14]} Qg7 {[%emt 0:00:20]} 17. Rh5 {[%emt 0:01:02]} f5 {[%emt 0:04:58]} 18. Rc1 {[%emt 0:00:40]} Kh8 {[%emt 0:06:05]} 19. Nf3 {[%emt 0:01:00]} f6 {[%emt 0:00:43]} 20. Rd1 {[%emt 0:07:59]} Rg8 {[%emt 0:03:06]} 21. g3 {[%emt 0:02:26]} e5 {[%emt 0:02:13]} 22. Rh4 {[%emt 0:10:05]} f4 {[%emt 0:02:54]} 23. Ne4 {[%emt 0:01:53]} fxg3 {[%emt 0:03:42]} 24. hxg3 {[%emt 0:01:18]} Bf5 {[%emt 0:00:58]} 25. Nd6 {[%emt 0:04:43]} Bg4 {[%emt 0:02:51]} 26. c5 {[%emt 0:03:47]} Be6 {[%emt 0:10:54]} 27. Kg2 {[%emt 0:02:21]} Qe7 {[%emt 0:03:12]} 28. Qc2 {[%emt 0:02:32]} Rg7 {[%emt 0:01:18]} 29. Rh6 {[%emt 0:00:49]} Bg4 {[%emt 0:02:47]} 30. Nf5 {[%emt 0:04:00]} Bxf5 {[%emt 0:00:01]} 31. Qxf5 {[%emt 0:00:01]} Qxc5 {[%emt 0:02:05]} 32. Rdh1 {[%emt 0:01:05]} Qe7 {[%emt 0:00:20]} 33. Rxf6 {[%emt 0:01:25]} Rag8 {[%emt 0:00:53]} 34. Rfh6 {[%emt 0:02:26]} Rf8 {[%emt 0:00:22]} 35. Rxh7+ {[%emt 0:01:42]} Rxh7 {[%emt 0:00:06]} 36. Rxh7+ {[%emt 0:00:02]} Qxh7 {[%emt 0:00:04]} 37. Qxf8+ {[%emt 0:00:02]} Qg8 {[%emt 0:00:05]} 38. Qf6+ {[%emt 0:00:32]} Qg7 {[%emt 0:00:06]} 39. Qe6 {[%emt 0:00:18]} Qe7 {[%emt 0:01:09]} 40. Qxe7 {[%emt 0:00:00]} Nxe7 {[%emt 0:00:00]} 41. Nxe5 {[%emt 0:01:25]} Nd5 {[%emt 0:00:18]} 42. Nf7+ {[%emt 0:01:52]} Kg7 {[%emt 0:00:16]} 43. Nd6 {[%emt 0:00:03]} b6 {[%emt 0:00:23]} 44. Nc8 {[%emt 0:00:09]} a5 {[%emt 0:01:15]} 45. e4 {[%emt 0:02:12]} Nc3 {[%emt 0:01:24]} 46. Nxb6 {[%emt 0:00:23]} Nxa2 {[%emt 0:00:24]} 47. Na4 {[%emt 0:00:20]} Nb4 {[%emt 0:02:33]} 48. f4 {[%emt 0:00:16]} Nd3 {[%emt 0:00:31]} 49. Kf3 {[%emt 0:00:41]} Kf6 {[%emt 0:00:28]} 50. Ke3 {[%emt 0:00:24]} Ne1 {[%emt 0:00:20]} 51. Kd4 {[%emt 0:00:51]} Nc2+ {[%emt 0:00:32]} 52. Kd5 {[%emt 0:02:15]} Ne3+ {[%emt 0:00:40]} 53. Kd6 {[%emt 0:00:06]} Nc4+ {[%emt 0:00:51]} 54. Kd7 {[%emt 0:00:04]} Ne3 {[%emt 0:04:44]} 55. e5+ {[%emt 0:00:15]} Kg7 {[%emt 0:00:32]} 56. e6 {[%emt 0:00:39]} Nd5 {[%emt 0:00:06]} 57. e7 {[%emt 0:00:07]} Nf6+ {[%emt 0:00:03]} 58. Kd8 {[%emt 0:00:03]} Kf7 {[%emt 0:00:06]} 59. g4 {[%emt 0:00:29]} 1-0

[Event "POL-ch Women MOKATE 2020"]
[Site "Ostrow Wielkopolski"]
[Date "2020.08.07"]
[Round "4.1"]
[White "Socko, Monika"]
[Black "Cyfka, Karina"]
[Result "1/2-1/2"]
[ECO "E21"]
[WhiteElo "2428"]
[BlackElo "2411"]
[Annotator "ChessBase"]
[PlyCount "100"]
[EventDate "2020.08.04"]
[EventType "tourn"]
[EventCountry "POL"]
[SourceTitle "playchess.com"]
[Source "ChessBase"]
[SourceQuality "1"]
[TimeControl "40/5400+30:1800+30"]

1. d4 {[%emt 0:00:00]} Nf6 {[%emt 0:00:00]} 2. c4 {[%emt 0:00:00]} e6 {[%emt 0:00:00]} 3. Nc3 {[%emt 0:00:00]} Bb4 {[%emt 0:00:00]} 4. Nf3 {[%emt 0:00:00]} b6 {[%emt 0:01:02]} 5. Bd2 {[%emt 0:00:09]} Bb7 {[%emt 0:01:19]} 6. g3 {[%emt 0:00:06]} O-O {[%emt 0:03:55]} 7. Bg2 {[%emt 0:00:06]} d6 {[%emt 0:02:12]} 8. O-O {[%emt 0:01:59]} Nbd7 {[%emt 0:01:32]} 9. a3 {[%emt 0:05:51]} Bxc3 {[%emt 0:00:07]} 10. Bxc3 {[%emt 0:00:03]} Ne4 {[%emt 0:06:43]} 11. Be1 {[%emt 0:01:08]} f5 {[%emt 0:02:44]} 12. Qc2 {[%emt 0:03:39]} Qe7 {[%emt 0:08:42]} 13. Rd1 {[%emt 0:01:12]} Ndf6 {[%emt 0:08:23]} 14. d5 {[%emt 0:09:50]} exd5 {[%emt 0:04:22]} 15. Nd4 {[%emt 0:00:04]} g6 {[%emt 0:05:38]} 16. cxd5 {[%emt 0:03:08]} Bxd5 {[%emt 0:06:47]} 17. f3 {[%emt 0:03:06]} Ng5 {[%emt 0:09:31]} 18. h4 {[%emt 0:16:32]} Nf7 {[%emt 0:02:29]} 19. Nb5 {[%emt 0:06:07]} c6 {[%emt 0:05:55]} 20. Nc3 {[%emt 0:05:18]} Be6 {[%emt 0:00:16]} 21. Bf2 {[%emt 0:01:19]} d5 {[%emt 0:02:17]} 22. e4 {[%emt 0:00:06]} Rad8 {[%emt 0:09:40]} 23. exd5 {[%emt 0:06:28]} cxd5 {[%emt 0:03:45]} 24. Rfe1 {[%emt 0:01:32]} Qd7 {[%emt 0:00:54]} 25. Bf1 {[%emt 0:00:47]} Nd6 {[%emt 0:01:12]} 26. Bd4 {[%emt 0:01:20]} Nh5 {[%emt 0:01:14]} 27. Be5 {[%emt 0:09:50]} Nf7 {[%emt 0:01:00]} 28. Bb5 {[%emt 0:00:22]} Qc8 {[%emt 0:00:34]} 29. Qe2 {[%emt 0:03:55]} Nxe5 {[%emt 0:04:21]} 30. Qxe5 {[%emt 0:00:02]} Bf7 {[%emt 0:00:20]} 31. Kg2 {[%emt 0:07:06]} Qc5 {[%emt 0:01:34]} 32. b4 {[%emt 0:04:39]} Qd6 {[%emt 0:00:11]} 33. Qxd6 {[%emt 0:01:32]} Rxd6 {[%emt 0:00:02]} 34. Re7 {[%emt 0:00:06]} d4 {[%emt 0:04:16]} 35. Rxa7 {[%emt 0:04:32]} Rfd8 {[%emt 0:01:19]} 36. Na4 {[%emt 0:00:10]} f4 {[%emt 0:02:04]} 37. g4 {[%emt 0:01:01]} Nf6 {[%emt 0:00:05]} 38. Kf2 {[%emt 0:00:39]} d3 {[%emt 0:01:36]} 39. Rd2 {[%emt 0:00:20]} Bb3 {[%emt 0:00:41]} 40. Nb2 {[%emt 0:00:00]} Bc2 {[%emt 0:00:00]} 41. g5 {[%emt 0:08:59]} Nd5 {[%emt 0:13:59]} 42. Bc4 {[%emt 0:03:14]} Kh8 {[%emt 0:03:58]} 43. Bxd5 {[%emt 0:05:07]} Rxd5 {[%emt 0:00:04]} 44. Re7 {[%emt 0:01:51]} b5 {[%emt 0:03:02]} 45. Re4 {[%emt 0:05:41]} Ra8 {[%emt 0:01:32]} 46. Rxf4 {[%emt 0:01:01]} Rxa3 {[%emt 0:01:42]} 47. Nd1 {[%emt 0:02:19]} Bxd1 {[%emt 0:02:43]} 48. Rxd1 {[%emt 0:00:02]} Ra2+ {[%emt 0:01:27]} 49. Kg3 {[%emt 0:00:03]} Kg7 {[%emt 0:01:38]} 50. Re4 {[%emt 0:00:44]} Kf7 {[%emt 0:01:51]} 1/2-1/2

[Event "POL-ch Women MOKATE 2020"]
[Site "Ostrow Wielkopolski"]
[Date "2020.08.07"]
[Round "4.2"]
[White "Antolak, Julia"]
[Black "Sliwicka, Alicja"]
[Result "1/2-1/2"]
[ECO "C96"]
[WhiteElo "2323"]
[BlackElo "2317"]
[Annotator "ChessBase"]
[PlyCount "91"]
[EventDate "2020.08.04"]
[EventType "tourn"]
[EventCountry "POL"]
[SourceTitle "playchess.com"]
[Source "ChessBase"]
[SourceQuality "1"]
[TimeControl "40/5400+30:1800+30"]

1. e4 {[%emt 0:00:00]} e5 {[%emt 0:00:00]} 2. Nf3 {[%emt 0:00:00]} Nc6 {[%emt 0:00:00]} 3. Bb5 {[%emt 0:00:00]} a6 {[%emt 0:00:00]} 4. Ba4 {[%emt 0:00:00]} Nf6 {[%emt 0:00:00]} 5. O-O {[%emt 0:00:08]} Be7 {[%emt 0:00:01]} 6. Re1 {[%emt 0:00:07]} b5 {[%emt 0:00:07]} 7. Bb3 {[%emt 0:00:05]} d6 {[%emt 0:00:06]} 8. c3 {[%emt 0:00:06]} O-O {[%emt 0:00:08]} 9. h3 {[%emt 0:00:04]} Na5 {[%emt 0:00:07]} 10. Bc2 {[%emt 0:00:07]} c5 {[%emt 0:00:07]} 11. d4 {[%emt 0:00:07]} Nd7 {[%emt 0:00:07]} 12. d5 {[%emt 0:00:52]} Nb6 {[%emt 0:00:26]} 13. Nbd2 {[%emt 0:00:54]} g6 {[%emt 0:00:10]} 14. b4 {[%emt 0:01:53]} Nb7 {[%emt 0:06:26]} 15. Nf1 {[%emt 0:14:24]} f5 {[%emt 0:04:33]} 16. exf5 {[%emt 0:03:07]} gxf5 {[%emt 0:00:21]} 17. N3h2 {[%emt 0:04:42]} a5 {[%emt 0:08:01]} 18. Ng3 {[%emt 0:07:26]} Bg5 {[%emt 0:28:28]} 19. bxa5 {[%emt 0:28:45]} Bxc1 {[%emt 0:02:21]} 20. Qxc1 {[%emt 0:02:06]} Nxd5 {[%emt 0:03:52]} 21. c4 {[%emt 0:09:30]} Nb4 {[%emt 0:04:36]} 22. cxb5 {[%emt 0:02:23]} Nxc2 {[%emt 0:01:32]} 23. Qxc2 {[%emt 0:00:06]} Nxa5 {[%emt 0:01:10]} 24. Rad1 {[%emt 0:01:18]} Qf6 {[%emt 0:02:52]} 25. Rd3 {[%emt 0:07:39]} Bb7 {[%emt 0:06:16]} 26. Qd2 {[%emt 0:03:09]} Nc4 {[%emt 0:02:24]} 27. Qc2 {[%emt 0:06:16]} d5 {[%emt 0:01:28]} 28. Red1 {[%emt 0:02:13]} Qf7 {[%emt 0:02:10]} 29. Rc3 {[%emt 0:02:40]} e4 {[%emt 0:04:06]} 30. Ngf1 {[%emt 0:02:15]} Rac8 {[%emt 0:05:52]} 31. Nd2 {[%emt 0:00:42]} Ne5 {[%emt 0:04:00]} 32. Rxc5 {[%emt 0:00:52]} d4 {[%emt 0:01:33]} 33. Nb3 {[%emt 0:00:48]} Nd3 {[%emt 0:01:38]} 34. Rxd3 {[%emt 0:01:38]} exd3 {[%emt 0:00:38]} 35. Qxd3 {[%emt 0:00:01]} Qg7 {[%emt 0:02:57]} 36. Nf3 {[%emt 0:00:45]} Bxf3 {[%emt 0:07:56]} 37. Qxf3 {[%emt 0:00:01]} Rcd8 {[%emt 0:00:30]} 38. Qd3 {[%emt 0:01:12]} f4 {[%emt 0:00:16]} 39. Nd2 {[%emt 0:00:25]} Rf6 {[%emt 0:00:49]} 40. Qf3 {[%emt 0:00:00]} Rg6 {[%emt 0:00:00]} 41. Rf5 {[%emt 0:08:41]} d3 {[%emt 0:09:08]} 42. h4 {[%emt 0:07:59]} Qa1+ {[%emt 0:04:13]} 43. Kh2 {[%emt 0:00:09]} Qxa2 {[%emt 0:00:33]} 44. Qxf4 {[%emt 0:01:48]} Qe6 {[%emt 0:00:56]} 45. g3 {[%emt 0:01:57]} Qd6 {[%emt 0:01:47]} 46. Qc4+ {[%emt 0:05:03]} 1/2-1/2

[Event "POL-ch Women MOKATE 2020"]
[Site "Ostrow Wielkopolski"]
[Date "2020.08.07"]
[Round "4.3"]
[White "Kucharska, Honorata"]
[Black "Waszczuk, Patrycja"]
[Result "1/2-1/2"]
[ECO "A83"]
[WhiteElo "2113"]
[BlackElo "2321"]
[Annotator "ChessBase"]
[PlyCount "77"]
[EventDate "2020.08.04"]
[EventType "tourn"]
[EventCountry "POL"]
[SourceTitle "playchess.com"]
[Source "ChessBase"]
[SourceQuality "1"]
[TimeControl "40/5400+30:1800+30"]

1. d4 {[%emt 0:00:00]} f5 {[%emt 0:00:00]} 2. e4 {[%emt 0:01:30]} fxe4 {[%emt 0:00:00]} 3. Nc3 {[%emt 0:00:08]} Nf6 {[%emt 0:00:00]} 4. Bg5 {[%emt 0:00:09]} g6 {[%emt 0:00:42]} 5. Bxf6 {[%emt 0:07:22]} exf6 {[%emt 0:00:07]} 6. Nxe4 {[%emt 0:00:03]} Qe7 {[%emt 0:07:46]} 7. Qe2 {[%emt 0:00:14]} Bg7 {[%emt 0:00:35]} 8. Nc3 {[%emt 0:02:57]} Qxe2+ {[%emt 0:03:16]} 9. Bxe2 {[%emt 0:01:18]} d6 {[%emt 0:01:11]} 10. Nf3 {[%emt 0:04:09]} Bf5 {[%emt 0:09:50]} 11. Nd5 {[%emt 0:03:49]} Kd8 {[%emt 0:04:01]} 12. Ne3 {[%emt 0:00:03]} Bd7 {[%emt 0:01:44]} 13. O-O {[%emt 0:02:18]} Nc6 {[%emt 0:04:40]} 14. d5 {[%emt 0:07:44]} Ne5 {[%emt 0:04:48]} 15. Nd4 {[%emt 0:03:54]} Re8 {[%emt 0:05:17]} 16. c3 {[%emt 0:04:36]} c5 {[%emt 0:10:01]} 17. dxc6 {[%emt 0:02:04]} bxc6 {[%emt 0:00:29]} 18. Rad1 {[%emt 0:06:29]} f5 {[%emt 0:04:25]} 19. Nc4 {[%emt 0:07:09]} Nxc4 {[%emt 0:02:42]} 20. Bxc4 {[%emt 0:00:04]} Rb8 {[%emt 0:05:10]} 21. Bb3 {[%emt 0:02:33]} Kc7 {[%emt 0:01:12]} 22. Rfe1 {[%emt 0:03:28]} a5 {[%emt 0:03:16]} 23. h3 {[%emt 0:04:40]} c5 {[%emt 0:02:51]} 24. Rxe8 {[%emt 0:04:37]} Rxe8 {[%emt 0:00:20]} 25. Nf3 {[%emt 0:01:08]} a4 {[%emt 0:01:58]} 26. Bc4 {[%emt 0:05:38]} Rb8 {[%emt 0:02:48]} 27. Re1 {[%emt 0:04:01]} Bf6 {[%emt 0:01:46]} 28. Re2 {[%emt 0:02:12]} g5 {[%emt 0:03:17]} 29. a3 {[%emt 0:01:38]} g4 {[%emt 0:03:33]} 30. hxg4 {[%emt 0:00:06]} fxg4 {[%emt 0:00:01]} 31. Nh2 {[%emt 0:00:09]} Be5 {[%emt 0:00:48]} 32. Nf1 {[%emt 0:00:37]} h5 {[%emt 0:01:43]} 33. Ne3 {[%emt 0:01:04]} Bc6 {[%emt 0:03:52]} 34. Bf7 {[%emt 0:02:59]} Rh8 {[%emt 0:04:49]} 35. Nc4 {[%emt 0:02:44]} Bb5 {[%emt 0:00:22]} 36. Bd5 {[%emt 0:00:34]} Rb8 {[%emt 0:03:26]} 37. g3 {[%emt 0:01:11]} Bxc4 {[%emt 0:03:27]} 38. Bxc4 {[%emt 0:00:05]} Kc6 {[%emt 0:00:19]} 39. Rd2 {[%emt 0:00:19]} 1/2-1/2

[Event "POL-ch Women MOKATE 2020"]
[Site "Ostrow Wielkopolski"]
[Date "2020.08.07"]
[Round "4.4"]
[White "Kulon, Klaudia"]
[Black "Zawadzka, Jolanta"]
[Result "1-0"]
[ECO "D02"]
[WhiteElo "2336"]
[BlackElo "2419"]
[Annotator "ChessBase"]
[PlyCount "103"]
[EventDate "2020.08.04"]
[EventType "tourn"]
[EventCountry "POL"]
[SourceTitle "playchess.com"]
[Source "ChessBase"]
[SourceQuality "1"]
[TimeControl "40/5400+30:1800+30"]

1. d4 {[%emt 0:00:00]} d5 {[%emt 0:00:00]} 2. Nf3 {[%emt 0:00:00]} Nf6 {[%emt 0:00:00]} 3. Bf4 {[%emt 0:00:00]} c5 {[%emt 0:00:26]} 4. e3 {[%emt 0:00:00]} Nc6 {[%emt 0:00:31]} 5. Nbd2 {[%emt 0:00:00]} cxd4 {[%emt 0:01:15]} 6. exd4 {[%emt 0:00:00]} Bf5 {[%emt 0:00:35]} 7. c3 {[%emt 0:00:02]} e6 {[%emt 0:00:36]} 8. Qb3 {[%emt 0:00:10]} Qc8 {[%emt 0:00:20]} 9. Nh4 {[%emt 0:00:19]} Be4 {[%emt 0:00:41]} 10. Nxe4 {[%emt 0:00:19]} Nxe4 {[%emt 0:00:18]} 11. Nf3 {[%emt 0:00:14]} Bd6 {[%emt 0:00:35]} 12. Bxd6 {[%emt 0:00:08]} Nxd6 {[%emt 0:00:05]} 13. Bd3 {[%emt 0:00:19]} O-O {[%emt 0:00:32]} 14. O-O {[%emt 0:02:05]} Qc7 {[%emt 0:02:53]} 15. Rae1 {[%emt 0:03:29]} a6 {[%emt 0:09:50]} 16. Bb1 {[%emt 0:06:58]} Rac8 {[%emt 0:08:54]} 17. Qc2 {[%emt 0:05:44]} g6 {[%emt 0:00:10]} 18. Qc1 {[%emt 0:02:45]} Kg7 {[%emt 0:10:18]} 19. h4 {[%emt 0:04:42]} Qe7 {[%emt 0:07:54]} 20. h5 {[%emt 0:06:24]} Qf6 {[%emt 0:08:27]} 21. Ne5 {[%emt 0:08:07]} Qh4 {[%emt 0:05:23]} 22. g3 {[%emt 0:01:06]} Qh3 {[%emt 0:04:34]} 23. Qf4 {[%emt 0:05:45]} Nf5 {[%emt 0:04:21]} 24. Ng4 {[%emt 0:10:10]} Qxh5 {[%emt 0:04:16]} 25. Kg2 {[%emt 0:00:16]} g5 {[%emt 0:00:47]} 26. Qf3 {[%emt 0:00:50]} Qg6 {[%emt 0:03:24]} 27. Rh1 {[%emt 0:01:18]} h5 {[%emt 0:02:14]} 28. Ne5 {[%emt 0:02:52]} Nxe5 {[%emt 0:01:16]} 29. Rxe5 {[%emt 0:00:06]} Rcd8 {[%emt 0:07:44]} 30. Bxf5 {[%emt 0:01:41]} exf5 {[%emt 0:00:04]} 31. Rxf5 {[%emt 0:00:21]} Rh8 {[%emt 0:03:05]} 32. Re1 {[%emt 0:04:30]} Rd7 {[%emt 0:02:20]} 33. Ree5 {[%emt 0:00:39]} f6 {[%emt 0:00:17]} 34. Rxd5 {[%emt 0:01:02]} Rf7 {[%emt 0:00:18]} 35. Qe3 {[%emt 0:04:18]} h4 {[%emt 0:08:10]} 36. g4 {[%emt 0:01:12]} Rc8 {[%emt 0:00:20]} 37. Rxg5 {[%emt 0:04:34]} fxg5 {[%emt 0:00:05]} 38. Rxg5 {[%emt 0:00:03]} Rcf8 {[%emt 0:01:09]} 39. Qe5+ {[%emt 0:00:48]} Rf6 {[%emt 0:01:41]} 40. f4 {[%emt 0:00:00]} Kh7 {[%emt 0:00:00]} 41. Rxg6 {[%emt 0:02:48]} Rxg6 {[%emt 0:06:23]} 42. Kh3 {[%emt 0:01:38]} Rgf6 {[%emt 0:02:49]} 43. f5 {[%emt 0:00:24]} Kg8 {[%emt 0:00:59]} 44. Kxh4 {[%emt 0:00:18]} R8f7 {[%emt 0:01:20]} 45. Kg5 {[%emt 0:00:28]} Rb6 {[%emt 0:00:35]} 46. b3 {[%emt 0:00:18]} Kh7 {[%emt 0:00:25]} 47. Kf4 {[%emt 0:00:15]} Rc6 {[%emt 0:01:45]} 48. c4 {[%emt 0:00:05]} Rd7 {[%emt 0:01:06]} 49. g5 {[%emt 0:00:17]} Rcd6 {[%emt 0:00:21]} 50. d5 {[%emt 0:00:16]} b5 {[%emt 0:00:07]} 51. g6+ {[%emt 0:00:14]} Kg8 {[%emt 0:00:06]} 52. f6 {[%emt 0:00:17]} 1-0

[Event "POL-ch Women MOKATE 2020"]
[Site "Ostrow Wielkopolski"]
[Date "2020.08.07"]
[Round "4.5"]
[White "Majdan, Joanna"]
[Black "Kubicka, Anna"]
[Result "1-0"]
[ECO "B10"]
[WhiteElo "2325"]
[BlackElo "2256"]
[Annotator "ChessBase"]
[PlyCount "89"]
[EventDate "2020.08.04"]
[EventType "tourn"]
[EventCountry "POL"]
[SourceTitle "playchess.com"]
[Source "ChessBase"]
[SourceQuality "1"]
[TimeControl "40/5400+30:1800+30"]

1. e4 {[%emt 0:00:00]} c6 {[%emt 0:00:00]} 2. Nc3 {[%emt 0:00:01]} d5 {[%emt 0:00:00]} 3. Nf3 {[%emt 0:00:04]} Nf6 {[%emt 0:00:00]} 4. e5 {[%emt 0:00:51]} Ne4 {[%emt 0:00:08]} 5. Ne2 {[%emt 0:00:14]} Qb6 {[%emt 0:00:16]} 6. d4 {[%emt 0:00:06]} e6 {[%emt 0:00:14]} 7. Ng3 {[%emt 0:01:44]} Nxg3 {[%emt 0:00:44]} 8. fxg3 {[%emt 0:01:42]} c5 {[%emt 0:01:23]} 9. Bd3 {[%emt 0:02:08]} h6 {[%emt 0:04:16]} 10. O-O {[%emt 0:01:34]} Bd7 {[%emt 0:03:42]} 11. Nh4 {[%emt 0:05:05]} Nc6 {[%emt 0:06:24]} 12. Qh5 {[%emt 0:02:10]} O-O-O {[%emt 0:00:52]} 13. dxc5 {[%emt 0:12:59]} Bxc5+ {[%emt 0:06:58]} 14. Kh1 {[%emt 0:00:03]} Bd4 {[%emt 0:05:50]} 15. c3 {[%emt 0:08:38]} Bxe5 {[%emt 0:03:30]} 16. Qxf7 {[%emt 0:00:05]} Rhf8 {[%emt 0:12:52]} 17. Qxf8 {[%emt 0:02:27]} Rxf8 {[%emt 0:02:45]} 18. Rxf8+ {[%emt 0:00:04]} Kc7 {[%emt 0:01:10]} 19. Rf1 {[%emt 0:02:10]} Bd6 {[%emt 0:07:05]} 20. b3 {[%emt 0:03:24]} g5 {[%emt 0:21:55]} 21. Ng6 {[%emt 0:00:33]} Ne5 {[%emt 0:01:25]} 22. Nxe5 {[%emt 0:00:37]} Bxe5 {[%emt 0:00:01]} 23. Bd2 {[%emt 0:01:26]} Qa5 {[%emt 0:05:28]} 24. a4 {[%emt 0:00:59]} Kd6 {[%emt 0:01:29]} 25. b4 {[%emt 0:03:33]} Qc7 {[%emt 0:01:14]} 26. Rf7 {[%emt 0:01:23]} Qc8 {[%emt 0:02:51]} 27. Rc1 {[%emt 0:06:55]} Qe8 {[%emt 0:05:34]} 28. Rcf1 {[%emt 0:04:18]} Qc8 {[%emt 0:00:20]} 29. Rf8 {[%emt 0:04:51]} Qc7 {[%emt 0:00:41]} 30. R8f7 {[%emt 0:03:48]} Qc8 {[%emt 0:01:21]} 31. Rc1 {[%emt 0:01:28]} Qe8 {[%emt 0:01:01]} 32. Rh7 {[%emt 0:00:35]} Qh5 {[%emt 0:00:29]} 33. Kg1 {[%emt 0:00:37]} a6 {[%emt 0:00:42]} 34. Be3 {[%emt 0:01:53]} Bxa4 {[%emt 0:02:21]} 35. Rxb7 {[%emt 0:04:00]} Bb5 {[%emt 0:01:38]} 36. Bc5+ {[%emt 0:03:03]} Kc6 {[%emt 0:00:02]} 37. Rb6+ {[%emt 0:00:05]} Kd7 {[%emt 0:01:01]} 38. Bxb5+ {[%emt 0:05:13]} axb5 {[%emt 0:00:01]} 39. Rb7+ {[%emt 0:03:23]} Kc6 {[%emt 0:00:33]} 40. Re7 {[%emt 0:00:00]} Bxc3 {[%emt 0:00:00]} 41. Rxe6+ {[%emt 0:01:26]} Kc7 {[%emt 0:13:22]} 42. h3 {[%emt 0:00:34]} Bb2 {[%emt 0:09:06]} 43. Rf1 {[%emt 0:02:08]} g4 {[%emt 0:00:19]} 44. hxg4 {[%emt 0:00:52]} Qxg4 {[%emt 0:06:49]} 45. Rf7+ {[%emt 0:00:14]} 1-0

[Event "POL-ch Women MOKATE 2020"]
[Site "Ostrow Wielkopolski"]
[Date "2020.08.08"]
[Round "5.1"]
[White "Sliwicka, Alicja"]
[Black "Kucharska, Honorata"]
[Result "1/2-1/2"]
[ECO "C11"]
[WhiteElo "2317"]
[BlackElo "2113"]
[Annotator "ChessBase"]
[PlyCount "68"]
[EventDate "2020.08.04"]
[EventType "tourn"]
[EventCountry "POL"]
[SourceTitle "playchess.com"]
[Source "ChessBase"]
[SourceQuality "1"]
[TimeControl "40/5400+30:1800+30"]

1. e4 {[%emt 0:00:00]} e6 {[%emt 0:00:00]} 2. Nf3 {[%emt 0:00:00]} d5 {[%emt 0:00:02]} 3. Nc3 {[%emt 0:00:00]} Nf6 {[%emt 0:01:34]} 4. e5 {[%emt 0:00:00]} Nfd7 {[%emt 0:00:05]} 5. d4 {[%emt 0:00:05]} c5 {[%emt 0:00:17]} 6. dxc5 {[%emt 0:00:13]} Nxc5 {[%emt 0:01:24]} 7. Bf4 {[%emt 0:08:35]} Be7 {[%emt 0:03:31]} 8. Bb5+ {[%emt 0:06:57]} Bd7 {[%emt 0:02:41]} 9. Bd3 {[%emt 0:00:41]} O-O {[%emt 0:02:06]} 10. h4 {[%emt 0:03:26]} Nxd3+ {[%emt 0:00:40]} 11. Qxd3 {[%emt 0:00:47]} f5 {[%emt 0:09:15]} 12. O-O-O {[%emt 0:10:29]} Bc6 {[%emt 0:05:44]} 13. Nd4 {[%emt 0:04:42]} Qc8 {[%emt 0:07:40]} 14. g4 {[%emt 0:01:58]} Bc5 {[%emt 0:08:56]} 15. Nce2 {[%emt 0:01:38]} Bxd4 {[%emt 0:07:08]} 16. Nxd4 {[%emt 0:00:14]} fxg4 {[%emt 0:00:48]} 17. Qg3 {[%emt 0:01:36]} h5 {[%emt 0:05:23]} 18. f3 {[%emt 0:01:00]} Be8 {[%emt 0:03:58]} 19. fxg4 {[%emt 0:02:49]} Nc6 {[%emt 0:01:30]} 20. Rhg1 {[%emt 0:09:47]} Nxd4 {[%emt 0:04:55]} 21. Rxd4 {[%emt 0:00:14]} Qc7 {[%emt 0:01:14]} 22. Bd2 {[%emt 0:15:18]} Bg6 {[%emt 0:04:54]} 23. Bc3 {[%emt 0:03:45]} Rf7 {[%emt 0:04:24]} 24. Rf4 {[%emt 0:06:06]} Raf8 {[%emt 0:00:45]} 25. Rxf7 {[%emt 0:01:19]} Qxf7 {[%emt 0:00:20]} 26. gxh5 {[%emt 0:01:59]} Bxh5 {[%emt 0:00:41]} 27. Bd2 {[%emt 0:01:45]} Kh7 {[%emt 0:04:18]} 28. b3 {[%emt 0:01:14]} Rc8 {[%emt 0:01:21]} 29. Kb2 {[%emt 0:02:13]} Bg6 {[%emt 0:00:53]} 30. c3 {[%emt 0:02:51]} b5 {[%emt 0:02:08]} 31. Qf4 {[%emt 0:04:09]} Qxf4 {[%emt 0:05:12]} 32. Bxf4 {[%emt 0:00:05]} a5 {[%emt 0:00:56]} 33. Rf1 {[%emt 0:01:05]} Bf5 {[%emt 0:01:30]} 34. Be3 {[%emt 0:00:33]} Rc6 {[%emt 0:01:16]} 1/2-1/2

[Event "POL-ch Women MOKATE 2020"]
[Site "Ostrow Wielkopolski"]
[Date "2020.08.08"]
[Round "5.5"]
[White "Waszczuk, Patrycja"]
[Black "Majdan, Joanna"]
[Result "0-1"]
[ECO "C03"]
[WhiteElo "2321"]
[BlackElo "2325"]
[Annotator "ChessBase"]
[PlyCount "48"]
[EventDate "2020.08.04"]
[EventType "tourn"]
[EventCountry "POL"]
[SourceTitle "playchess.com"]
[Source "ChessBase"]
[SourceQuality "1"]
[TimeControl "40/5400+30:1800+30"]

1. e4 {[%emt 0:00:00]} e6 {[%emt 0:00:00]} 2. d4 {[%emt 0:00:00]} d5 {[%emt 0:00:00]} 3. Nd2 {[%emt 0:00:00]} dxe4 {[%emt 0:00:00]} 4. Nxe4 {[%emt 0:00:00]} Nf6 {[%emt 0:00:00]} 5. Nxf6+ {[%emt 0:00:06]} gxf6 {[%emt 0:00:00]} 6. Nf3 {[%emt 0:00:36]} Nc6 {[%emt 0:00:15]} 7. Bf4 {[%emt 0:05:57]} e5 {[%emt 0:04:07]} 8. dxe5 {[%emt 0:04:49]} Qe7 {[%emt 0:00:09]} 9. Qe2 {[%emt 0:02:20]} Qb4+ {[%emt 0:01:06]} 10. Bd2 {[%emt 0:03:20]} Qxb2 {[%emt 0:00:07]} 11. Qd1 {[%emt 0:02:26]} Nxe5 {[%emt 0:07:20]} 12. Nxe5 {[%emt 0:05:04]} Qxe5+ {[%emt 0:00:38]} 13. Be2 {[%emt 0:03:20]} Bd6 {[%emt 0:03:48]} 14. Rb1 {[%emt 0:03:47]} Rg8 {[%emt 0:01:50]} 15. g3 {[%emt 0:11:37]} Bh3 {[%emt 0:09:20]} 16. Rb5 {[%emt 0:00:28]} Qe4 {[%emt 0:04:20]} 17. f3 {[%emt 0:05:31]} Qe7 {[%emt 0:03:28]} 18. Kf2 {[%emt 0:08:24]} O-O-O {[%emt 0:06:30]} 19. g4 {[%emt 0:05:08]} f5 {[%emt 0:06:06]} 20. Rxf5 {[%emt 0:00:15]} Qh4+ {[%emt 0:00:20]} 21. Kg1 {[%emt 0:00:45]} Bg3 {[%emt 0:00:21]} 22. Be3 {[%emt 0:03:05]} Rxd1+ {[%emt 0:00:05]} 23. Bxd1 {[%emt 0:00:05]} Bf4 {[%emt 0:00:51]} 24. Bf2 {[%emt 0:02:09]} Be3 {[%emt 0:00:05]} 0-1